Cogmind - Beta 14 @@@ ROGUE MODE // 2024.09.23 @ 18:51:47 Player: Minty Result: Destroyed by H-77 Assassin with Coil Gun Performance ------------- Evolutions (6) 3000 Regions Visited (13) 2600 Robots Destroyed (174) 870 Value Destroyed (4844) 4844 Prototype IDs (53) 1060 Alien Tech Used (0) 0 Bonus (1096) 1096 TOTAL SCORE: 13470 Bonus ------- High Alert Combat Kills 361 Follower Combat Kills 630 Aligned with FarCom 300 Friendly Fire -195 Cogmind --------- Core Integrity 0/1150 Matter 8/300 Energy 504/900 System Corruption 0% Temperature Cool (4) Movement Hovering (236) Ox2 Location -4/Factory Parts ------- > --- POWER (2) -------- Backup Power III F-cell Engine > --- PROPULSION (5) --- Backup Propulsion III Backup Propulsion III > --- UTILITY (9) ------ Improved Energy Well Advanced Targeting Computer Stasis Canceller Backup Plating III Layered Medium Armor Plating > --- WEAPON (3) ------- Backup Laser III Backup Laser III > --- INVENTORY (5) ---- Backup Power III Long-range Terrain Scanner Peak State ------------ > --- POWER ------------ Light Antimatter Reactor Micro Antimatter Reactor > --- PROPULSION ------- Advanced Heavy Treads Wheel Combat Antigrav System > --- UTILITY ---------- Advanced Cooling System Large Storage Unit Advanced Targeting Computer Hacking Suite Hacking Suite System Shield System Shield Improved System Shield Advanced System Shield > --- WEAPON ----------- Disruptor Cannon Heavy Proton Cannon > --- INVENTORY -------- F-cell Engine Improved Energy Well Precision Matter Filter Energy Filter Stasis Canceller Hacking Suite Guided Plasma Cannon Improved KE Penetrator Improved KE Penetrator Railgun Antimatter Cannon Hypervelocity Gauss Cannon Improved Plasma Cutter Plasma Sword [Rating: 94] Favorites ----------- Power Nuclear Core Engine F-cell Engine Power Core Nuclear Core Reactor Micro Antimatter Reactor Propulsion Combat Airjet Treads Light Treads Leg Enhanced Flexi-carbon Leg Wheel Wheel Hover Unit Combat Airjet Flight Unit Xenon Bombardment Thruster Utility Hacking Suite Device Heat Sink Storage Small Storage Unit Processor Advanced Targeting Computer Hackware Hacking Suite Protection Utility Shielding Weapon Advanced Beam Cannon Energy Gun Beamcaster Energy Cannon Advanced Beam Cannon Ballistic Gun Enhanced Autogun Ballistic Cannon Hypervelocity Gauss Cannon Launcher Proton Missile Launcher Special Weapon Improved Plasma Cutter Slashing Weapon Plasma Sword Build | -11 -10 -10 -9 -9 -9 -8 -8 -8 -8 -8 -6 -5 -4 ------- Run | Yrd Mat Min Mat Min Exi Min Mat Sto Rec Scr Fac Fac Fac Slots Evolved 12 | . . . 2 . . . 2 . . . 4 2 2 Power 1 | . . . . . . . . . . . . . 1 Propulsion 3 | . . . . . . . . . . . 2 . 1 Utility 7 | . . . 1 . . . 2 . . . 2 2 . Weapon 1 | . . . 1 . . . . . . . . . . Parts Attached 213 | . 8 8 12 6 . 2 10 13 2 . 20 97 35 Power 24 | . 1 1 1 1 . . 2 2 2 . . 10 4 Engine 16 | . 1 1 . . . . 1 2 2 . . 8 1 Core 5 | . . . 1 1 . . 1 . . . . 2 . Reactor 3 | . . . . . . . . . . . . . 3 Propulsion 34 | . 2 4 2 3 . . . . . . 7 13 3 Treads 3 | . 2 . . . . . . . . . . . 1 Leg 4 | . . . . . . . . . . . . 4 . Wheel 9 | . . 4 2 1 . . . . . . . 2 . Hover 10 | . . . . 2 . . . . . . . 6 2 Flight 8 | . . . . . . . . . . . 7 1 . Utility 54 | . 1 . 3 . . 1 5 1 . . 6 29 8 Device 26 | . 1 . 3 . . 1 . . . . . 18 3 Storage 7 | . . . . . . . 1 . . . . 5 1 Processor 2 | . . . . . . . . . . . . 2 . Hackware 14 | . . . . . . . 3 . . . 5 3 3 Protection 5 | . . . . . . . 1 1 . . 1 1 1 Artifact . | . . . . . . . . . . . . . . Weapon 101 | . 4 3 6 2 . 1 3 10 . . 7 45 20 Energy Gun 9 | . 1 1 1 . . . . 1 . . 2 2 1 Energy Cannon 21 | . . . 4 1 . . . . . . 1 9 6 Ballistic Gun 35 | . 1 1 . . . . 3 7 . . 2 16 5 Ballistic Cannon 15 | . . 1 . . . . . . . . 1 9 4 Launcher 11 | . 2 . 1 1 . 1 . 2 . . 1 3 . Special Weapon 1 | . . . . . . . . . . . . . 1 Impact Weapon . | . . . . . . . . . . . . . . Slashing Weapon 9 | . . . . . . . . . . . . 6 3 Piercing Weapon . | . . . . . . . . . . . . . . Special Melee Weapon . | . . . . . . . . . . . . . . Unidentified Prototypes 17 | . . . 2 . . . 2 1 . . 1 11 . Corrupted Parts 1 | . . 1 . . . . . . . . . . . System Corruption 9 | . . 9 . . . . . . . . . . . Parts Lost 62 | . 3 2 . . . . 1 3 . . 12 18 23 Power 7 | . 1 1 . . . . . 1 . . 1 1 2 Propulsion 18 | . . 1 . . . . . . . . 5 8 4 Utility 19 | . . . . . . . 1 . . . 3 6 9 Weapon 18 | . 2 . . . . . . 2 . . 3 3 8 Highest Loss Streak 16 | . 3 2 . . . . 1 1 . . 4 5 16 To Critical Strikes 1 | . . . . . . . . . . . . 1 . Average Slot Usage (%) 85 | . 89 96 98 99 88 92 99 96 100 100 75 76 62 Engine 4 | . 13 13 . . . . 3 7 9 9 2 3 1 Core 2 | . . . 10 11 11 11 5 . . . . . . Treads 1 | . 19 5 . . . . . . . . . . 2 Wheel 4 | . . 20 21 15 . . . . . . . . 3 Hover 9 | . . . . 6 22 22 18 18 18 18 3 10 4 Flight 1 | . . . . . . . . . . . 14 . . Device 7 | . 9 14 22 22 22 22 9 . . . . 5 1 Storage 6 | . 14 14 11 11 11 11 9 9 9 9 2 1 3 Processor 2 | . . . . . . . . . . . . 7 5 Hackware 20 | . . . . . . . 20 27 27 27 38 30 25 Protection 2 | . . . . . . . 6 9 9 9 4 1 . Energy Gun 2 | . 18 12 . . . . . 1 9 9 2 . . Energy Cannon 5 | . . . 28 32 22 22 10 . . . . . 1 Ballistic Gun 7 | . 4 14 1 . . . 11 22 18 18 3 5 . Peak Build Rating 94 | . 7 8 19 27 24 28 38 39 38 38 52 84 94 Average Rating 42 | . 6 7 17 21 24 26 35 36 38 38 39 63 63 On Entrance 24 | 6 6 6 8 19 24 24 28 38 38 38 38 34 33 Naked Turns . | . . . . . . . . . . . . . . Heaviest Build 61 | 10 12 15 26 26 22 23 24 25 24 24 24 47 61 Greatest Support 112 | 20 40 40 20 24 24 24 24 24 24 24 24 112 70 Greatest Overweight (x) 9 | . . . 1 2 . . . 1 . . . 6 9 Average Overweight (x) . | . . . . . . . . . . . . . 2 Largest Inventory Capacity 25 | . 8 8 8 8 8 8 8 8 8 8 8 25 15 Average Capacity 8 | . 8 8 8 8 8 8 8 8 8 8 6 8 12 Most Carried 15 | . 8 8 8 8 8 8 8 8 8 8 8 15 15 Average Carried 7 | . 7 7 7 7 8 7 7 7 7 8 5 7 11 Final Capacity 15 | 8 8 8 8 8 8 8 8 8 8 8 5 15 5 Final Carried 15 | 6 7 8 8 8 8 7 8 7 8 8 2 15 2 Class Distribution -------------------- 22% | Hacker-Mutant 21% | Wizard-Mutant 17% | Mutant 17% | Hacker-Skirmisher 11% | Gunner 4% | Hacker-Tank Dominant Class ---------------- Mutant | -10/Materials Mutant | -10/Mines Gunner | -9/Materials Gunner | -9/Mines Mutant | -9/Exiles Mutant | -8/Mines Hacker-Skirmisher | -8/Materials Hacker-Skirmisher | -8/Storage Hacker-Skirmisher | -8/Recycling Hacker-Tank | -8/Scraptown Wizard-Mutant | -6/Factory Hacker-Mutant | -5/Factory Wizard-Mutant | -4/Factory Resources | -11 -10 -10 -9 -9 -9 -8 -8 -8 -8 -8 -6 -5 -4 ----------- Run | Yrd Mat Min Mat Min Exi Min Mat Sto Rec Scr Fac Fac Fac Matter Collected 4010 | 200 52 329 120 74 . 60 395 620 182 . 73 1725 180 Remotely 5 | . . . . . . . . . . . . 5 . Salvage Created 6942 | . 302 397 506 343 . 176 635 592 518 . 501 2365 607 Parts 357 | . 12 19 26 14 . 9 39 28 23 . 30 129 28 Haulers Intercepted 9 | . . . 1 . . . 3 1 . . . 4 . Recyclers Shooed 8 | . . 1 . . . . . . 3 . . 3 1 Parts Field Recycled . | . . . . . . . . . . . . . . Retrieved Matter . | . . . . . . . . . . . . . . Parts Self-Destructed . | . . . . . . . . . . . . . . Prevented . | . . . . . . . . . . . . . . Kills | -11 -10 -10 -9 -9 -9 -8 -8 -8 -8 -8 -6 -5 -4 ------- Run | Yrd Mat Min Mat Min Exi Min Mat Sto Rec Scr Fac Fac Fac Combat Hostiles Destroyed 106 | . 5 5 8 20 . 3 11 12 3 . 8 24 7 Guns 42 | . 4 5 . . . . 6 8 3 . 1 14 1 Cannons 24 | . . . 6 6 . 1 1 . . . 1 6 3 AOE 35 | . 1 . . 14 . 1 4 4 . . 5 4 2 Classes Destroyed 17 | . 3 2 5 2 . . 1 . . . 3 1 . Worker 33 | . 1 4 1 1 . 1 2 . . . 8 12 3 Builder 10 | . . . . . . . . . . . 2 5 3 Tunneler 7 | . . 2 . . . 1 . . . . 1 2 1 Hauler 9 | . . . 1 . . . 3 1 . . . 4 . Recycler 14 | . 1 . . 2 . . . 1 5 . 1 2 2 Mechanic 1 | . . . 1 . . . . . . . . . . Operator 1 | . . . . . . . 1 . . . . . . Watcher 7 | . . . 1 . . . 3 . . . . 2 1 Swarmer 25 | . . 2 . 4 . . 4 2 . . . 9 4 Grunt 39 | . 5 3 5 . . 2 5 6 . . 5 8 . Brawler 4 | . . . 1 . . 1 . 2 . . . . . Duelist 1 | . . . . . . . . . . . 1 . . Sentry 14 | . . . 2 . . . 2 2 3 . 1 4 . Demolisher 1 | . . . . 1 . . . . . . . . . Hunter 5 | . . . . . . . . . . . 1 1 3 Programmer 2 | . . . . . . . . . . . . 2 . Assembled 15 | . . . . 15 . . . . . . . . . Thug 1 | . . . . . . . . 1 . . . . . Best Kill Streak 16 | . 7 2 7 16 . 4 9 5 3 . 16 9 6 Combat Bots Only 16 | . 5 1 4 16 . 3 6 4 2 . 6 6 2 Max Kills in Single Turn 6 | . 2 1 2 6 . 2 2 3 1 . 5 3 3 Gunslinging 1 | . . . . . . . 1 . . . . . . Exploded 6 | . 1 . . 6 . 1 2 3 . . 4 2 2 Melee . | . . . . . . . . . . . . . . Uniques/NPCs Destroyed . | . . . . . . . . . . . . . . Combat | -11 -10 -10 -9 -9 -9 -8 -8 -8 -8 -8 -6 -5 -4 -------- Run | Yrd Mat Min Mat Min Exi Min Mat Sto Rec Scr Fac Fac Fac Hostile Shots Fired 961 | . 63 40 15 34 . 2 40 131 2 . 143 220 271 Missed 339 | . 17 8 5 11 . 1 15 54 . . 60 73 95 Damage Taken 10409 | . 532 402 142 293 . 14 340 1266 29 . 1066 3171 3154 Core 2820 | . 103 90 12 45 . . 104 222 14 . 373 706 1151 Absorbed by Shields 308 | . . . . . . . . . . . 173 135 . Redirected to Shielding 78 | . . . . . . . 10 14 . . 9 45 . Regen/Repaired (Parts) 224 | . . . 32 . . . . . . . . 192 . Core Remaining (%) 55 | 100 . 22 . . . 85 . . . 38 56 29 . Volleys Fired 392 | . 23 43 18 19 . 8 32 50 11 . 32 119 37 Largest 3 | . 2 2 3 3 . 3 3 3 3 . 3 3 3 Hottest 204 | . 80 70 204 204 . 166 166 83 125 . 125 162 162 Shots Fired 772 | . 36 82 54 51 . 17 86 127 33 . 43 185 58 Gun 498 | . 35 82 . . . . 60 116 33 . 25 133 14 Cannon 244 | . . . 54 47 . 16 20 . . . 16 47 44 Launcher 30 | . 1 . . 4 . 1 6 11 . . 2 5 . Special . | . . . . . . . . . . . . . . Kinetic 467 | . 2 41 . . . . 60 116 22 . 24 168 34 Thermal 259 | . 33 41 54 47 . 16 20 . 11 . 17 5 15 Explosive 25 | . 1 . . 4 . 1 6 11 . . 2 . . Electromagnetic 21 | . . . . . . . . . . . . 12 9 Robot Hit Streak 21 | . 11 21 4 4 . 4 8 8 8 . 8 16 14 Robot Miss Streak 6 | . 2 3 3 5 . 3 3 6 1 . 6 2 3 Penetration Max 2 | . . . . . . . . . . . . 2 1 Secondary Targets 7 | . 1 1 . . . . 2 . . . 1 2 . Max Gunslinging Chain 1 | . 1 1 . . . . 1 . . . 1 1 . Shots Hit Robots 459 | . 25 54 26 21 . 8 50 52 16 . 26 139 42 Core Hits 299 | . 14 19 11 36 . 4 33 41 10 . 42 69 20 Critical Kills 25 | . . . 2 . . 1 . . . . . 22 . Critical Parts Destroyed 21 | . . . . . . . . . . . . 20 1 Critical Strikes 49 | . . 1 2 . . 1 . . . . . 43 2 Burn 1 | . . 1 . . . . . . . . . . . Meltdown 3 | . . . 2 . . 1 . . . . . . . Destroy 43 | . . . . . . . . . . . . 42 1 Blast 2 | . . . . . . . . . . . . 1 1 Melee Attacks 26 | . . . . . . . . . . . . 22 4 Impact . | . . . . . . . . . . . . . . Slashing 26 | . . . . . . . . . . . . 22 4 Piercing . | . . . . . . . . . . . . . . Sneak Attacks 14 | . . . . . . . . . . . . 11 3 Combat Hostiles . | . . . . . . . . . . . . . . Follow-up Attacks . | . . . . . . . . . . . . . . Damage Inflicted 15362 | . 410 586 596 1433 . 230 1410 1793 304 . 2301 3944 2355 Guns 4920 | . 269 571 . . . . 677 892 304 . 387 1501 319 Cannons 3287 | . . . 596 410 . 163 204 . . . 113 770 1031 Explosions 5763 | . 141 . . 1023 . 67 529 891 . . 1801 632 679 Melee 1321 | . . . . . . . . . . . . 1033 288 Ramming 71 | . . 15 . . . . . 10 . . . 8 38 Kinetic 4723 | . 15 199 . . . . 677 892 108 . 205 1893 734 Thermal 3584 | . 254 372 596 410 . 163 204 . 196 . 295 522 572 Explosive 5060 | . 92 . . 1023 . 67 529 891 . . 1801 179 478 Electromagnetic 603 | . 49 . . . . . . . . . . 309 245 Impact . | . . . . . . . . . . . . . . Slashing 1321 | . . . . . . . . . . . . 1033 288 Piercing . | . . . . . . . . . . . . . . Highest Corruption 9 | . . 9 . . . . . . . . 3 5 . Average Corruption 6 | . . 9 . . . . . . . . 2 4 . Corruption Purged 5 | . . . . . . . . . . . . 5 . Corruption Blocked . | . . . . . . . . . . . . . . Effects 36 | . . 25 . . . . . . . . 2 9 . Message Errors 7 | . . 4 . . . . . . . . 1 2 . Matter Fused 10 | . . 8 . . . . . . . . . 2 . Heat Flow Errors 4 | . . 1 . . . . . . . . . 3 . Energy Discharges 2 | . . 2 . . . . . . . . . . . Data Loss (minor) 3 | . . 2 . . . . . . . . 1 . . Data Loss (major) 1 | . . . . . . . . . . . . 1 . Misfires 3 | . . 2 . . . . . . . . . 1 . Weapon Failures 6 | . . 6 . . . . . . . . . . . Overload Shots . | . . . . . . . . . . . . . . Overflow Damage 908 | . . . . 39 . . 20 16 . . 77 590 166 Projectiles 24 | . . . . 5 . . . . . . . . 19 Explosions 516 | . . . . 34 . . 20 16 . . 77 254 115 Melee 368 | . . . . . . . . . . . . 336 32 Knockbacks 6 | . . . . . . . . . . . 1 4 1 Impact . | . . . . . . . . . . . . . . Kinetic 6 | . . . . . . . . . . . 1 4 1 Secondary . | . . . . . . . . . . . . . . Self-Inflicted Damage 523 | . . 4 . . . . 25 117 . . . 292 85 Shots 12 | . . . . . . . 1 3 . . . 7 1 Rammed 13 | . . 4 . . . . . 2 . . . 1 6 Targets Rammed 13 | . . 4 . . . . . 2 . . . 1 6 Kicked . | . . . . . . . . . . . . . . Crushed . | . . . . . . . . . . . . . . Highest Temperature 497 | . 46 125 375 364 . 30 162 223 244 . 144 291 497 Average Temperature 87 | . 19 13 128 158 . 13 45 90 79 . 39 88 148 Received Heat Transfer 2455 | . 294 231 69 . . 9 99 540 9 . 306 504 394 Effects 8 | . . . 1 . . . . . . . . 1 6 Shutdowns 4 | . . . 1 . . . . . . . . . 3 Energy Bleed 1 | . . . . . . . . . . . . 1 . Matter Decay 1 | . . . . . . . . . . . . . 1 Short Circuit 1 | . . . . . . . . . . . . . 1 Damage (major) 1 | . . . . . . . . . . . . . 1 Siege Activations . | . . . . . . . . . . . . . . Robots Corrupted 1 | . . . . . . . . . . . . 1 . Combat Hostiles . | . . . . . . . . . . . . . . Parts Fried 3 | . . . . . . . . . . . . 3 . Impact Corruptions . | . . . . . . . . . . . . . . Robots Melted 5 | . . . 2 . . 1 . . . . 1 . 1 Combat Hostiles 5 | . . . 2 . . 1 . . . . 1 . 1 Parts Melted 20 | . 1 1 7 2 . 2 . . . . 4 . 3 Heat Transferred 6749 | . 575 1184 1073 740 . 296 370 . 333 . 518 600 1060 Parts Sabotaged . | . . . . . . . . . . . . . . Parts Stolen . | . . . . . . . . . . . . . . Parts Stripped . | . . . . . . . . . . . . . . Power Chain Reactions 2 | . 1 . . . . . . . . . . . 1 Alert | -11 -10 -10 -9 -9 -9 -8 -8 -8 -8 -8 -6 -5 -4 ------- Run | Yrd Mat Min Mat Min Exi Min Mat Sto Rec Scr Fac Fac Fac Peak Influence 826 | . 144 206 534 302 . 86 515 771 276 . 612 826 520 Initial 325 | . . 55 57 130 . . 33 217 246 . . 299 325 Average 276 | . 42 116 258 228 . 35 299 494 93 . 136 389 240 Maximum Alert Level 3 | . . 1 2 1 . . 2 3 1 . 2 3 2 Low Security (%) 35 | . 100 65 39 18 . 100 19 . 76 . 81 9 43 Level 1 39 | . . 34 30 81 . . 57 29 23 . 8 51 40 Level 2 21 | . . . 29 . . . 22 57 . . 9 32 16 Level 3 2 | . . . . . . . . 13 . . . 5 . Level 4 . | . . . . . . . . . . . . . . Level 5 . | . . . . . . . . . . . . . . High Security . | . . . . . . . . . . . . . . Max Security . | . . . . . . . . . . . . . . Squads Dispatched 37 | . 2 . 2 . . . 1 4 . . 7 19 2 Investigation 18 | . 1 . 1 . . . . 1 . . 4 11 . Extermination 2 | . . . . . . . . . . . . 2 . Reinforcement 14 | . 1 . 1 . . . 1 1 . . 3 5 2 Assault 2 | . . . . . . . . 2 . . . . . Garrison 1 | . . . . . . . . . . . . 1 . Intercept . | . . . . . . . . . . . . . . Searches Triggered . | . . . . . . . . . . . . . . Construction Impeded 5 | . . . . . . . . . . . 2 2 1 Haulers Reinforced 3 | . . . . . . . . . . . . 3 . Active Scanning Responses . | . . . . . . . . . . . . . . Cargo Convoy Interrupts . | . . . . . . . . . . . . . . Stealth | -11 -10 -10 -9 -9 -9 -8 -8 -8 -8 -8 -6 -5 -4 --------- Run | Yrd Mat Min Mat Min Exi Min Mat Sto Rec Scr Fac Fac Fac Distress Signals 11 | . 1 1 2 . . . 1 1 . . . 3 2 Communications Jammed . | . . . . . . . . . . . . . . Distress Signals . | . . . . . . . . . . . . . . Times Spotted 222 | . 7 11 15 19 . 3 21 25 1 . 30 64 26 Peak Tracking Total 17 | . 6 3 5 17 . 3 5 13 . . 9 8 10 Tactical Retreats 30 | . . 2 . 1 . . 1 4 . . 9 10 3 Traps | -11 -10 -10 -9 -9 -9 -8 -8 -8 -8 -8 -6 -5 -4 ------- Run | Yrd Mat Min Mat Min Exi Min Mat Sto Rec Scr Fac Fac Fac Traps Triggered 5 | . . . . . . . . . . . 2 3 . Indirectly 1 | . . . . . . . . . . . . 1 . Trap Hack Attempts . | . . . . . . . . . . . . . . Triggered . | . . . . . . . . . . . . . . Disarmed 8 | . . . . . . . . . . . . 8 . Reprogrammed 2 | . . . . . . . . . . . 2 . . Reused . | . . . . . . . . . . . . . . Traps Extracted . | . . . . . . . . . . . . . . Installed . | . . . . . . . . . . . . . . Triggered 1 | . . . . . . . . . . . . 1 . Objects Rigged 13 | . . . . . . . . . . . 8 2 3 Exploded 2 | . . . . . . . . . . . . . 2 Machines | -11 -10 -10 -9 -9 -9 -8 -8 -8 -8 -8 -6 -5 -4 ---------- Run | Yrd Mat Min Mat Min Exi Min Mat Sto Rec Scr Fac Fac Fac Machines Disabled 56 | . 2 . . 2 . . 3 3 2 . 14 8 22 Max in Single Turn 5 | . 2 . . 1 . . 1 1 1 . 5 3 4 Machines Repaired . | . . . . . . . . . . . . . . Machines Dismantled . | . . . . . . . . . . . . . . Machines Sabotaged 1 | . . . . . . . . 1 . . . . . Overloaded Fab Kills 3 | . . . . . . . . . . . . 3 . Hacking | -11 -10 -10 -9 -9 -9 -8 -8 -8 -8 -8 -6 -5 -4 --------- Run | Yrd Mat Min Mat Min Exi Min Mat Sto Rec Scr Fac Fac Fac Machines Accessed 62 | . 1 . 5 . 2 . 1 4 7 . 10 27 5 Terminals 37 | . 1 . 3 . . . 1 4 6 . 6 13 3 Fabricators 7 | . . . . . . . . . . . 3 4 . Repair Stations 4 | . . . 1 . . . . . . . . 2 1 Recycling Units 7 | . . . . . . . . . 1 . 1 4 1 Scanalyzers 3 | . . . 1 . . . . . . . . 2 . Garrison Access 2 | . . . . . . . . . . . . 2 . Total Hacks 341 | . 3 . 15 . 2 . 6 9 28 . 65 157 56 Successful 230 | . 1 . 8 . 2 . 2 7 20 . 49 110 31 Failed 110 | . 2 . 7 . . . 4 2 7 . 16 47 25 Catastrophic 16 | . 1 . 2 . . . 2 . . . 1 5 5 Database Lockouts 1 | . . . . . . . . . 1 . . . . Manual 178 | . 2 . 9 . 1 . 5 7 12 . 38 82 22 Terminals 250 | . 3 . 9 . . . 6 9 27 . 48 99 49 Fabricators 30 | . . . . . . . . . . . 11 19 . Repair Stations 9 | . . . 3 . . . . . . . . 4 2 Recycling Units 22 | . . . . . . . . . 1 . 6 10 5 Scanalyzers 22 | . . . 3 . . . . . . . . 19 . Garrison Access 6 | . . . . . . . . . . . . 6 . Terminal Hacks 128 | . 1 . 2 . 2 . 1 6 16 . 28 48 24 Record 1 | . . . . . 1 . . . . . . . . Part Schematic 9 | . . . . . . . . . 2 . 2 3 2 Robot Schematic 2 | . . . . . . . . . 1 . . . 1 Robot Analysis 10 | . 1 . . . . . . 3 1 . 2 1 2 Prototype ID Bank 5 | . . . . . . . 1 . . . 2 1 1 Open Door 2 | . . . . . . . . 2 . . . . . Level Access Points 3 | . . . . . . . . . . . 1 1 1 Branch Access Points 3 | . . . 1 . . . . . . . 1 1 . Emergency Access Points 6 | . . . . . . . . . . . 1 4 1 Machine Index 1 | . . . . . . . . . . . . 1 . Terminal Index 6 | . . . 1 . . . . 1 1 . 1 1 1 Fabricator Index 1 | . . . . . . . . . . . . 1 . Repair Station Index 1 | . . . . . . . . . . . . 1 . Scanalyzer Index 1 | . . . . . . . . . . . . 1 . Garrison Index 1 | . . . . . . . . . . . 1 . . Alert Level 16 | . . . . . . . . . 1 . 2 9 4 Unreport Threat 16 | . . . . . . . . . 5 . 1 6 4 Locate Traps 7 | . . . . . . . . . . . 2 3 2 Disarm Traps 2 | . . . . . . . . . . . . 2 . Reprogram Traps 1 | . . . . . . . . . . . 1 . . Dispatch Records 6 | . . . . . . . . . . . 1 4 1 Maintenance Status 1 | . . . . . . . . . 1 . . . . Patrol Status 1 | . . . . . . . . . . . 1 . . Transport Status 1 | . . . . . . . . . . . . . 1 Reinforcement Status 1 | . . . . . . . . . 1 . . . . Recall Investigation 6 | . . . . . . . . . . . 3 3 . Recall Extermination 1 | . . . . . . . . . . . . 1 . Recall Reinforcements 3 | . . . . . . . . . 1 . 1 1 . Hauler Manifests 4 | . . . . . . . . . 1 . 1 1 1 Registered Components 1 | . . . . . . . . . . . 1 . . Zone Layout 8 | . . . . . . . . . 1 . 3 2 2 Derelict Proto ID Bank 1 | . . . . . 1 . . . . . . . . Fabricator Hacks 14 | . . . . . . . . . . . 7 7 . Network Status 5 | . . . . . . . . . . . 2 3 . Load Schematic 4 | . . . . . . . . . . . 2 2 . Build 5 | . . . . . . . . . . . 3 2 . Repair Station Hacks 5 | . . . 2 . . . . . . . . 2 1 Scan Component 2 | . . . 1 . . . . . . . . 1 . Repair 2 | . . . 1 . . . . . . . . 1 . Refit 1 | . . . . . . . . . . . . . 1 Recycling Unit Hacks 19 | . . . . . . . . . 1 . 6 9 3 Recycle Component 2 | . . . . . . . . . . . 2 . . Process 3 | . . . . . . . . . . . 2 1 . Report Inventory 8 | . . . . . . . . . 1 . 1 4 2 Retrieve Matter 2 | . . . . . . . . . . . 1 1 . Retrieve Components 4 | . . . . . . . . . . . . 3 1 Scanalyzer 16 | . . . 2 . . . . . . . . 14 . Insert Component 7 | . . . 1 . . . . . . . . 6 . Analyze 9 | . . . 1 . . . . . . . . 8 . Garrison Access Hacks . | . . . . . . . . . . . . . . Unauthorized Hacks 48 | . . . 2 . . . 1 1 3 . 8 30 3 Terminals 30 | . . . 1 . . . 1 1 3 . 5 16 3 Track 1 | . . . . . . . . . . . . 1 . Assimilate 2 | . . . . . . . . . . . 1 1 . Botnet 12 | . . . 1 . . . 1 . 1 . 2 5 2 Detonate 4 | . . . . . . . . . . . 2 1 1 Disrupt 1 | . . . . . . . . . . . . 1 . Operators 1 | . . . . . . . . . . . . 1 . Skim 7 | . . . . . . . . . 1 . . 6 . Sabotage 1 | . . . . . . . . 1 . . . . . Search 1 | . . . . . . . . . 1 . . . . Fabricators 9 | . . . . . . . . . . . 3 6 . Report 1 | . . . . . . . . . . . . 1 . Prioritize 4 | . . . . . . . . . . . 2 2 . Liberate 1 | . . . . . . . . . . . 1 . . Fabnet 1 | . . . . . . . . . . . . 1 . Haulers 1 | . . . . . . . . . . . . 1 . Overload 1 | . . . . . . . . . . . . 1 . Repair Stations 1 | . . . . . . . . . . . . 1 . Patch 1 | . . . . . . . . . . . . 1 . Recycling Units . | . . . . . . . . . . . . . . Scanalyzers 3 | . . . 1 . . . . . . . . 2 . Extract 3 | . . . 1 . . . . . . . . 2 . Garrison Access 5 | . . . . . . . . . . . . 5 . Broadcast 1 | . . . . . . . . . . . . 1 . Reprogram 2 | . . . . . . . . . . . . 2 . Intercept 1 | . . . . . . . . . . . . 1 . Watchers 1 | . . . . . . . . . . . . 1 . Data Cores Recovered . | . . . . . . . . . . . . . . Used . | . . . . . . . . . . . . . . Hacking Detections 49 | . 1 . 5 . . . 1 4 6 . 9 20 3 Full Trace Events 12 | . 1 . . . . . . . 3 . 4 4 . Feedback Events 2 | . . . . . . . . . . . 2 . . Corruption 1 | . . . . . . . . . . . 1 . . Hackware Fried 1 | . . . . . . . . . . . 1 . . Feedback Blocked 2 | . . . . . . . . . . . 1 1 . Robot Schematics Acquired 2 | . . . . . . . . . 1 . . . 1 Robots Built 4 | . . . . . . . . . . . 1 3 . Authchips . | . . . . . . . . . . . . . . Time 96 | . . . . . . . . . . . 38 58 . Total Robot Build Rating 14 | . . . . . . . . . . . 5 9 . Part Schematics Acquired 29 | . . . 6 . . . . . 1 . 2 19 1 Parts Built 5 | . . . . . . . . . . . 4 1 . Authchips . | . . . . . . . . . . . . . . Time 122 | . . . . . . . . . . . 84 38 . Total Part Build Rating 21 | . . . . . . . . . . . 16 5 . Parts Repaired 2 | . . . 1 . . . . . . . . 1 . Time 66 | . . . 26 . . . . . . . . 40 . Parts Recycled 2 | . . . . . . . . . . . 2 . . Recycled Matter 356 | . . . . . . . . . . . 203 153 . Retrieved Matter 356 | . . . . . . . . . . . 203 153 . Retrieved Components 11 | . . . . . . . . . . . . 8 3 Parts Scanalyzed 6 | . . . 1 . . . . . . . . 5 . Part Schematics Acquired 6 | . . . 1 . . . . . . . . 5 . Parts Damaged . | . . . . . . . . . . . . . . Bothacking | -11 -10 -10 -9 -9 -9 -8 -8 -8 -8 -8 -6 -5 -4 ------------ Run | Yrd Mat Min Mat Min Exi Min Mat Sto Rec Scr Fac Fac Fac Used RIF Installer . | . . . . . . . . . . . . . . Robots Hacked 2 | . . . . . . . . . . . . . 2 Non-combat . | . . . . . . . . . . . . . . Combat 2 | . . . . . . . . . . . . . 2 Robot Hacks Applied . | . . . . . . . . . . . . . . Relay Couplers Released . | . . . . . . . . . . . . . . Fabnet Peak Effective % 3 | . . . . . . . . . . . . . 3 Autooverrided 2 | . . . . . . . . . . . . . 2 Robots Rewired 5 | . . . . . . . . . . . 2 2 1 Allies Hacked . | . . . . . . . . . . . . . . Hacks Repelled . | . . . . . . . . . . . . . . Allies | -11 -10 -10 -9 -9 -9 -8 -8 -8 -8 -8 -6 -5 -4 -------- Run | Yrd Mat Min Mat Min Exi Min Mat Sto Rec Scr Fac Fac Fac Total Allies 25 | . . 3 . 1 . . . 2 . . 7 9 3 Largest Group 5 | . . 3 3 2 . . . 2 . . 5 3 1 Highest-Rated Group 167 | . . 40 40 47 . . . 62 . . 167 123 49 Highest-Rated Ally 65 | . . 16 16 31 . . . 31 . . 40 65 49 Total Orders . | . . . . . . . . . . . . . . Ally Attacks 137 | . . 21 25 7 . . . 6 . . 21 55 2 Total Damage 2284 | . . 152 265 103 . . . 63 . . 324 1337 40 Kills 28 | . . 3 7 1 . . . 1 . . 2 14 . Allies Corrupted . | . . . . . . . . . . . . . . Allies Melted . | . . . . . . . . . . . . . . Intel | -11 -10 -10 -9 -9 -9 -8 -8 -8 -8 -8 -6 -5 -4 ------- Run | Yrd Mat Min Mat Min Exi Min Mat Sto Rec Scr Fac Fac Fac Robot Analysis Total 10 | . 1 . . . . . . 3 1 . 2 1 2 Derelict Logs Recovered 4 | . . 3 . 1 . . . . . . . . . Drone Launches . | . . . . . . . . . . . . . . Drone Recoveries . | . . . . . . . . . . . . . . Exploration | -11 -10 -10 -9 -9 -9 -8 -8 -8 -8 -8 -6 -5 -4 ------------- Run | Yrd Mat Min Mat Min Exi Min Mat Sto Rec Scr Fac Fac Fac Turns Passed 5921 | . 160 569 417 266 164 94 327 422 282 254 492 1888 586 Spaces Moved 5831 | 1 64 441 314 184 213 88 280 362 325 329 783 2063 384 Core 154 | . . . . . . . . . . . . 37 117 Treads 98 | . 25 67 . . . . . . . . . . 6 Legs 56 | 1 39 . . . . . . . . . . 16 . Wheels 1033 | . . 374 314 139 . . . . . . . 17 189 Hover 3376 | . . . . 45 213 88 280 362 325 329 63 1599 72 Flight 1114 | . . . . . . . . . . . 720 394 . Fastest Speed 31 | 120 120 80 80 77 77 77 77 77 77 77 31 35 50 Average Speed 70 | 120 135 95 94 103 77 77 77 77 77 77 38 56 105 Slowest Speed 500 | 120 160 160 95 220 77 77 77 147 77 77 77 350 500 Overloaded Moves . | . . . . . . . . . . . . . . Propulsion Burnouts . | . . . . . . . . . . . . . . Robots Hopped 9 | . . . . . . . . . . . 4 5 . Cave-ins Triggered 1 | . . . . . . . . . . . . 1 . Exploration Rate (%) 39 | 2 19 91 30 42 61 31 33 30 75 43 22 52 16 Regions Visited 13 Branch Regions 7 Pre-discovered Areas 5 | . . 2 . 1 1 . . . . . . 1 . Known Exits Taken 3 | . . . 1 . . . . . . . 1 1 . Unknown Exits Taken 10 | 1 1 1 . 1 1 1 1 1 1 1 . . . Scrap Searched 5 | . . 1 . 1 . 1 . . . 2 . . . Spaces Dug 12 | . . . . . . . . . . . . 12 . Terrain Destroyed 377 | . . . . 20 . 6 28 99 . . 58 71 95 Melee 9 | . . . . . . . . . . . . 9 . Projectile 21 | . . . . . . . 1 1 . . 8 10 1 AOE 345 | . . . . 20 . 6 27 98 . . 50 50 94 Terrain Rammed . | . . . . . . . . . . . . . . Walls Destroyed . | . . . . . . . . . . . . . . Machines Disabled . | . . . . . . . . . . . . . . Actions | -11 -10 -10 -9 -9 -9 -8 -8 -8 -8 -8 -6 -5 -4 --------- Run | Yrd Mat Min Mat Min Exi Min Mat Sto Rec Scr Fac Fac Fac Total 6999 | . 102 509 394 221 214 98 348 448 342 329 931 2561 502 Wait 299 | . . 4 35 6 . . 9 8 . 1 79 143 14 Move 5801 | . 63 440 313 183 212 87 279 361 324 328 774 2053 384 Hop 8 | . . . . . . . . . . . 4 4 . Pick Up 76 | . 5 5 7 1 1 . 10 5 2 . 7 30 3 Fast Attach 72 | . 1 1 2 2 . . . 2 . . 8 45 11 Attach 70 | . 5 2 2 . . 1 3 4 . . 10 24 19 Detach 43 | . 1 . 1 1 . . . 1 . . 4 27 8 Swap 71 | . 2 5 8 4 . 1 7 7 2 . 2 28 5 Drop 97 | . 2 5 8 5 1 1 8 8 3 . 5 44 7 Fire 392 | . 23 43 18 19 . 8 32 50 11 . 32 119 37 Melee 26 | . . . . . . . . . . . . 22 4 Ram 10 | . . 1 . . . . . 2 . . . 1 6 Kick . | . . . . . . . . . . . . . . Crush 3 | . . 3 . . . . . . . . . . . Escape Stasis 18 | . . . . . . . . . . . . 18 . Rewire 13 | . . . . . . . . . . . 6 3 4 Trap . | . . . . . . . . . . . . . . Miscellaneous . | . . . . . . . . . . . . . . Route ------- -11/Scrapyard -10/Materials -10/Mines (discovered 2 exits: *Mat x2) -9/Materials (discovered 3 exits: *Mat / *Min x2) -9/Mines (discovered 3 exits: *Mat x2 / *Exi) -9/Exiles -8/Mines -8/Materials -8/Storage -8/Recycling (discovered 2 exits: *Fac / [*Scr]) -8/Scraptown -6/Factory (discovered 6 exits: *Fac x4 / Low x2) -5/Factory (discovered 8 exits: *Fac x4 / *Upp x2 / *Ext x2) -4/Factory (discovered 5 exits: Res x4 / Upp) History --------- Turn | Location | Event 1 | -11/Scrapyard | Discovered new exit (range 0) 1 | -11/Scrapyard | Entered Materials 136 | -10/Materials | Discovered new exit (range 16) 159 | -10/Materials | Lost 3 parts (1p2w) 161 | -10/Materials | Entered Mines 168 | -10/Mines | Received a Rocket Launcher from a helpful Derelict 217 | -10/Mines | Learned 2 Materials zone layouts 244 | -10/Mines | Core integrity fell below 50% 314 | -10/Mines | Build established: Mutant 328 | -10/Mines | Learned location of Zion (-6) 339 | -10/Mines | Learned location of Storage (-8) 350 | -10/Mines | Assisted by bots powering up and referring to "LRC-V3" 703 | -10/Mines | Discovered new exit (range 15) 704 | -10/Mines | Discovered new exit (range 15) 730 | -10/Mines | Entered Materials 730 | -9/Materials | Accompanied by 3 allies 730 | -9/Materials | Evolved 2 slots: Utility x1, Weapon x1 1010 | -9/Materials | Build established: Gunner 1027 | -9/Materials | Discovered new exit (range 9) 1028 | -9/Materials | Discovered new exit (range 15) 1078 | -9/Materials | Repaired Wheel 1118 | -9/Materials | Identified exit to Mines 1147 | -9/Materials | Entered Mines 1147 | -9/Mines | Accompanied by 1 ally 1150 | -9/Mines | Received a Mining Laser from a helpful Derelict 1159 | -9/Mines | Discovered new exit (range 10) 1168 | -9/Mines | Discovered new exit (range 10) 1274 | -9/Mines | Assembled infested the area 1289 | -9/Mines | Met 8R-AWN 1325 | -9/Mines | Destroyed 16 combat bots 1409 | -9/Mines | Discovered new exit (range 5) 1413 | -9/Mines | Entered Exiles 1432 | -9/Exiles | Welcomed by 8R-AWN 1446 | -9/Exiles | Met EX-HEX 1468 | -9/Exiles | Met EX-BIN 1479 | -9/Exiles | Aligned with FarCom system 1480 | -9/Exiles | Given EX-Vault access code 1498 | -9/Exiles | Opened EX-Vault 1502 | -9/Exiles | Found Gui. Plasma Cannon 1521 | -9/Exiles | Warned to stay clear of 0b10 Research branches 1543 | -9/Exiles | Met EX-DEC 1569 | -9/Exiles | Discovered new exit (range 14) 1577 | -9/Exiles | Left Exiles lab with Gui. Plasma Cannon 1577 | -9/Exiles | Entered Mines 1662 | -8/Mines | Discovered new exit (range 13) 1671 | -8/Mines | Entered Materials 1671 | -8/Materials | Evolved 2 slots: Utility x2 1934 | -8/Materials | Discovered new exit (range 11) 1998 | -8/Materials | Entered Storage 2003 | -8/Storage | Build established: Hacker-Skirmisher 2046 | -8/Storage | Met a pair of Derelict thieves 2243 | -8/Storage | Core integrity fell below 50% 2408 | -8/Storage | Used back door to open Recycling access 2408 | -8/Storage | Discovered new exit (range 5) 2420 | -8/Storage | Entered Recycling 2556 | -8/Recycling | Discovered new exit (range 14) 2685 | -8/Recycling | Scanned before Scraplab entrance 2696 | -8/Recycling | Entered Scraplab 2702 | -8/Recycling | Discovered new exit (range 2) 2702 | -8/Recycling | Entered Scraptown 2789 | -8/Scraptown | Turned away by UFD registrar 2813 | -8/Scraptown | Heard Great Nut preacher, LISTEN AND RECITE! 2820 | -8/Scraptown | Visited Cyclists 2826 | -8/Scraptown | Visited Symbiants 2836 | -8/Scraptown | Visited Cave Peace 2847 | -8/Scraptown | Visited Fellowship of the Rings 2948 | -8/Scraptown | Discovered new exit (range 7) 2956 | -8/Scraptown | Entered Factory 2956 | -6/Factory | Evolved 4 slots: Propulsion x2, Utility x2 3014 | -6/Factory | Fabricated Xenon Bombardment Thruster (x2) 3119 | -6/Factory | Fabricated Xenon Bombardment Thruster (x2) 3186 | -6/Factory | Spotted B-75 Beast 3217 | -6/Factory | Lost 4 parts (1p2n1u) 3322 | -6/Factory | Identified exit to Factory 3322 | -6/Factory | Identified exit to Lower Caves 3348 | -6/Factory | Hacking Suite fried by hacking feedback 3408 | -6/Factory | Fabricated M-22 Extractor? 3440 | -6/Factory | Lost 3 parts (2n1w) 3448 | -6/Factory | Entered another Factory area 3448 | -5/Factory | Evolved 2 slots: Utility x2 3525 | -5/Factory | Identified exit to Upper Caves 3525 | -5/Factory | Identified exit to Extension 3596 | -5/Factory | Lost 3 parts (2n1u) 3604 | -5/Factory | Fabricated G-47 Trooper (x3) 3640 | -5/Factory | Crushed by falling debris 3693 | -5/Factory | Lost 5 parts (3u2w) 3696 | -5/Factory | Lost 3 allies 3740 | -5/Factory | Spotted B-75 Beast 3809 | -5/Factory | Repaired F-cell Engine 3929 | -5/Factory | Build established: Hacker-Mutant 3929 | -5/Factory | Garrison activated, responded to threat 4382 | -5/Factory | Core integrity fell below 50% 4707 | -5/Factory | Identified exit to Factory 4749 | -5/Factory | Learned location of 3 exits from Factory 4783 | -5/Factory | Learned Testing scanalyzer intel 4798 | -5/Factory | Build established: Wizard-Mutant 4806 | -5/Factory | Learned location of 1 exit from Research 4818 | -5/Factory | Learned location of 1 exit from Testing 4819 | -5/Factory | Learned Quarantine stockpile data 4820 | -5/Factory | Learned Extension emergency access door positions 4961 | -5/Factory | Fabricated F-cell Engine (x1) 5062 | -5/Factory | Lost 4 parts (2n1u1w) 5306 | -5/Factory | Build established: Hacker-Mutant 5336 | -5/Factory | Entered another Factory area 5336 | -4/Factory | Evolved 2 slots: Power x1, Propulsion x1 5337 | -4/Factory | Identified exit to Research 5337 | -4/Factory | Identified exit to Upper Caves 5667 | -4/Factory | Build established: Wizard-Mutant 5711 | -4/Factory | Spotted B-86 Titan 5771 | -4/Factory | Core integrity fell below 50% 5798 | -4/Factory | Lost 16 parts (2p3n5u6w) 5815 | -4/Factory | Core integrity fell below 20% 5868 | -4/Factory | Lost 7 parts (1n4u2w) 5922 | -4/Factory | Destroyed by H-77 Assassin with Coil Gun Last Messages --------------- 05847_ Slammed into K-01 Serf. 05847_ Destabilizing: System interference. 05847_ Adv. Targeting Computer temporarily disabled. 05848_ Slug penetrates Wall. 05848_ Slammed into K-01 Serf. 05848_ Adv. Targeting Computer broken. 05848_ Destabilizing: Short circuit. 05850_ K-01 Serf collects debris. 05869_ Connecting with Repair Station... >>Refit Scanning configuration... Attaching: Backup Power III x2 Backup Propulsion III x2 Backup Plating III x1 Backup Laser III x2 05900_ Acquired Lyr. Medium Armor Plating. 05903_ Acquired Lrn. Terrain Scanner. 05911_ Slug penetrates Wall. 05922_ Slug penetrates Scanalyzer. Map ----- +----------------------------------------------------+ | ???????????# #???? #???????# ## #?????? | | ???????????# #???? #???????# ##* #?????? | | ??????????? ?###%######### ## | #?????? | | ???????????T" # """" #?????? | | ???????????"" # """" #?????? | | ??????????? # """" #?????? | | ????????????? ############ # """" #?????? | | ?????????????#???# ?????# # """" " "" #?????? | | ?????????????????# ! ????# + """" "R"" #?????? | | ?????????????????? ????# # """" #?????? | | ?????????????????? ?### ##############?????? | | ?????????????????? """"?# ########?????????? | | ?????????????????? """" # #########?? | | ?????????????????# """" # w ?? | | ?????????????????# """" + ?? | | ?????????????????# """" # """ """??????? | | ?????????????????? """" # """ """ ?????? | | ?????????????????? """"?# ## """ """ """??? | | ?????????????????? ?########## | | ?????????????????? ??# # """ """ | | ?????????????????# ??# h"""" + """ """??????? | | ?????????????????####???# ""S"" # """ """??????? | | ????????????????????????# "" ""h# ??????? | | ????????????????????????# # ?????? | | ????????????????????????# """ #########+#?????? | | ????????????????????????#@ """ #???????????????? | | ????????????????????????# """ #???????????????? | | ????????????????????????# #???????????????? | | ????????????????????????##########???????????????? | | ?????????????????????????????????????????????????? | | ?????????????????????????????????????????????????? | | ?????????????????????????????????????????????????? | | ?????????????????????????????????????????????????? | | ?????????????????????????????????????????????????? | | ?????????????????????????????????????????????????? | | ?????????????????????????????????????????????????? | | ?????????????????????????????????????????????????? | | ?????????????????????????????????????????????????? | | ?????????????????????????????????????????????????? | | ?????????????????????????????????????????????????? | | ?????????????????????????????????????????????????? | | ?????????????????????????????????????????????????? | | ?????????????????????????????????????????????????? | | ?????????????????????????????????????????????????? | | ?????????????????????????????????????????????????? | | ?????????????????????????????????????????????????? | | ?????????????????????????????????????????????????? | | ?????????????????????????????????????????????????? | | ?????????????????????????????????????????????????? | | ?????????????????????????????????????????????????? | +----------------------------------------------------+ Best States ------------- Heat Dissipation 74 Energy Generation 35 Energy Capacity 900 Matter Stores 300 Matter Capacity 300 Sight Range 16 Terrain Scan Density 10 ECM Strength 1 Jamming Range 14 Armor Coverage 305 Resistance: EM 20 Utility Shielding 33 Evasion (%) 63 Targeting Accuracy 8 Recoil Reduction 2 Matter Filtering 50 Particle Charging 20 Offensive Hacking 50 Defensive Hacking 56 Item Schematics ----------------- Hacking Suite | -9/Materials | Scanalyzed Hover Unit | -9/Materials | Extracted Trap Extractor | -9/Materials | Extracted ECM Suite | -9/Materials | Extracted Imp. Treads | -9/Materials | Extracted Lgt. EM Pulse Cannon | -9/Materials | Extracted Xenon Bombardment Thruster | -8/Recycling | Hacked Imp. Hacking Suite | -6/Factory | Hacked Imp. System Restoration Module | -6/Factory | Hacked Adv. System Shield | -5/Factory | Hacked Adv. Hacking Suite | -5/Factory | Hacked Nova Cannon | -5/Factory | Hacked F-cell Engine | -5/Factory | Scanalyzed Proton Missile Launcher | -5/Factory | Scanalyzed EM Disruption Field | -5/Factory | Extracted Hcp. Storage Unit | -5/Factory | Extracted Adv. Heat Sink | -5/Factory | Extracted Hvy. Flak Cannon | -5/Factory | Extracted Lyr. Medium Armor Plating | -5/Factory | Extracted Cld. Plasma Rifle | -5/Factory | Extracted Imp. Utility Shielding | -5/Factory | Extracted Smartbomb Launcher | -5/Factory | Extracted Hvy. Proton Cannon | -5/Factory | Scanalyzed Imp. Energy Well | -5/Factory | Scanalyzed Adv. Cooling System | -5/Factory | Scanalyzed Matter Filter | -5/Factory | Extracted Lyr. Heavy Armor Plating | -5/Factory | Extracted Imp. Light Armor Plating | -5/Factory | Extracted Exp. Utility Shielding | -4/Factory | Hacked Robot Schematics ------------------ G-47 Trooper | -8/Recycling | Hacked O-32 Director | -4/Factory | Hacked Fabricated ------------ Xenon Bombardment Thruster | x2 | -6/Factory Xenon Bombardment Thruster | x2 | -6/Factory M-22 Extractor | x1 | -6/Factory | Preloaded G-47 Trooper | x3 | -5/Factory F-cell Engine | x1 | -5/Factory Alien Tech Used ----------------- None Achievements -------------- None Challenges ------------ None Game ------ Seed CooledSapperRigger Manual? 0 Play Time 01:06:39 Cumulative 945.0 hours Start 2024.09.23 @ 17:49:21 End 2024.09.23 @ 18:51:47 Sessions 1 Manual Loads 0 Difficulty Rogue Special Mode None Game No. 1152 Rogue 872 Adventurer 124 Explorer 156 Win Type - Total 41 Types 28/0/8/3/1/0/0/1/0 Lore% 82 Gallery% 90 Achievement% 78 Wizard Run 0 Options --------- Layout 0 ASCII 0 Keyboard 1 Movement Numpad Keybinds 0 Fullscreen 2 Font 18/X11 Map View 76x50 Zoom Use 0% Tactical HUD 1 Map Filters NONE Filters NONE Steam 1 RUN: 66faa0ac-21b8-4098-a2a2-6a446f036135